[Event "Early-Titled-Tuesday-Blitz-April-16-2024"]
[Site "Chess.com"]
[Date "2024.04.16"]
[Round "5"]
[White "RandomNoob04"]
[Black "becemix"]
[Result "1-0"]
[WhiteElo "2660"]
[BlackElo "2491"]
[TimeControl "180+1"]
[EndTime "8:56:57 PDT"]
[Termination "RandomNoob04 won by checkmate"]

1. e4 {[%clk 0:03:00.9]} 1... e5 {[%clk 0:02:59.5]} 2. d4 {[%clk 0:03:01.3]}
2... exd4 {[%clk 0:02:59.4]} 3. Qxd4 {[%clk 0:03:02.2]} 3... Nc6 {[%clk
0:02:59.2]} 4. Qe3 {[%clk 0:03:02.8]} 4... g6 {[%clk 0:02:57.4]} 5. Nc3 {[%clk
0:03:01.9]} 5... Bg7 {[%clk 0:02:57.8]} 6. h4 {[%clk 0:03:02.4]} 6... Nf6 {[%clk
0:02:50.3]} 7. h5 {[%clk 0:03:02]} 7... Nxh5 {[%clk 0:02:50]} 8. Be2 {[%clk
0:03:02.7]} 8... Nf6 {[%clk 0:02:49.4]} 9. e5 {[%clk 0:03:03]} 9... Ng8 {[%clk
0:02:45.4]} 10. Nf3 {[%clk 0:03:03.5]} 10... h6 {[%clk 0:02:43.8]} 11. Bd2
{[%clk 0:03:01.5]} 11... Nge7 {[%clk 0:02:42.4]} 12. O-O-O {[%clk 0:02:56.7]}
12... d5 {[%clk 0:02:32.7]} 13. exd6 {[%clk 0:02:55]} 13... cxd6 {[%clk
0:02:33.6]} 14. Nd5 {[%clk 0:02:24.7]} 14... Be6 {[%clk 0:02:29.6]} 15. Bc3
{[%clk 0:02:19.7]} 15... Nxd5 {[%clk 0:02:18.1]} 16. Rxd5 {[%clk 0:02:20.3]}
16... Bxc3 {[%clk 0:02:15.8]} 17. Qxc3 {[%clk 0:02:21.2]} 17... Bxd5 {[%clk
0:02:13.1]} 18. Qxh8+ {[%clk 0:02:21.7]} 18... Kd7 {[%clk 0:02:11.6]} 19. Qxh6
{[%clk 0:02:21.4]} 19... Kc7 {[%clk 0:02:10.9]} 20. Rd1 {[%clk 0:02:19.9]} 20...
Bxf3 {[%clk 0:01:53]} 21. Bxf3 {[%clk 0:02:20.8]} 21... Qf6 {[%clk 0:01:53.5]}
22. Qe3 {[%clk 0:02:13]} 22... Qe5 {[%clk 0:01:46.6]} 23. Qb3 {[%clk 0:02:09.4]}
23... Qf4+ {[%clk 0:01:39.8]} 24. Kb1 {[%clk 0:02:09]} 24... Re8 {[%clk
0:01:40.4]} 25. a3 {[%clk 0:02:06.4]} 25... g5 {[%clk 0:01:33.8]} 26. g3 {[%clk
0:01:30.5]} 26... Qf5 {[%clk 0:01:32.7]} 27. Rd5 {[%clk 0:01:26]} 27... Re1+
{[%clk 0:01:24.5]} 28. Ka2 {[%clk 0:01:26]} 28... Re5 {[%clk 0:01:25.4]} 29. Rd3
{[%clk 0:01:03.1]} 29... Rb5 {[%clk 0:01:14.3]} 30. Qc4 {[%clk 0:00:57.7]} 30...
Rc5 {[%clk 0:01:05]} 31. Qb3 {[%clk 0:00:50]} 31... Qf6 {[%clk 0:00:27]} 32.
Bxc6 {[%clk 0:00:27.4]} 32... bxc6 {[%clk 0:00:20.7]} 33. Rf3 {[%clk 0:00:27.6]}
33... Rf5 {[%clk 0:00:17.8]} 34. Rc3 {[%clk 0:00:28.1]} 34... Qe6 {[%clk
0:00:17.1]} 35. Rc4 {[%clk 0:00:24.4]} 35... Rf3 {[%clk 0:00:12.9]} 36. Qxf3
{[%clk 0:00:14.4]} 36... Qxc4+ {[%clk 0:00:12.9]} 37. Qb3 {[%clk 0:00:15.3]}
37... Qxb3+ {[%clk 0:00:11.6]} 38. Kxb3 {[%clk 0:00:16.2]} 38... c5 {[%clk
0:00:10.9]} 39. Kc4 {[%clk 0:00:16.4]} 39... Kc6 {[%clk 0:00:11.4]} 40. Kd3
{[%clk 0:00:16.4]} 40... d5 {[%clk 0:00:11.3]} 41. c4 {[%clk 0:00:16.1]} 41...
d4 {[%clk 0:00:11.1]} 42. b4 {[%clk 0:00:16.2]} 42... a6 {[%clk 0:00:11.1]} 43.
bxc5 {[%clk 0:00:03.6]} 43... Kxc5 {[%clk 0:00:10.7]} 44. g4 {[%clk 0:00:04]}
44... f6 {[%clk 0:00:08.2]} 45. f3 {[%clk 0:00:04.5]} 45... a5 {[%clk
0:00:07.9]} 46. a4 {[%clk 0:00:05.2]} 46... Kb4 {[%clk 0:00:04.1]} 47. Kxd4
{[%clk 0:00:06.1]} 47... Kxa4 {[%clk 0:00:04.4]} 48. Kc3 {[%clk 0:00:06.8]}
48... Ka3 {[%clk 0:00:01.1]} 49. c5 {[%clk 0:00:07.2]} 49... Ka2 {[%clk
0:00:01.4]} 50. c6 {[%clk 0:00:07.5]} 50... a4 {[%clk 0:00:01.9]} 51. c7 {[%clk
0:00:07.8]} 51... Kb1 {[%clk 0:00:02.2]} 52. c8=Q {[%clk 0:00:08.7]} 52... a3
{[%clk 0:00:03]} 53. Qb7+ {[%clk 0:00:09]} 53... Ka2 {[%clk 0:00:03.9]} 54. Kc2
{[%clk 0:00:07.9]} 54... Ka1 {[%clk 0:00:04.8]} 55. Qb1# {[%clk 0:00:08]} 1-0

[Event "Early-Titled-Tuesday-Blitz-April-16-2024"]
[Site "Chess.com"]
[Date "2024.04.16"]
[Round "5"]
[White "osielchesslover2011"]
[Black "bylavochka"]
[Result "0-1"]
[WhiteElo "2083"]
[BlackElo "2363"]
[TimeControl "180+1"]
[EndTime "8:57:01 PDT"]
[Termination "bylavochka won by checkmate"]

1. e4 {[%clk 0:03:00.9]} 1... c5 {[%clk 0:02:59.9]} 2. Nf3 {[%clk 0:03:00.6]}
2... d6 {[%clk 0:02:59.9]} 3. d4 {[%clk 0:03:01.1]} 3... cxd4 {[%clk 0:02:59.4]}
4. Nxd4 {[%clk 0:03:01.8]} 4... Nf6 {[%clk 0:02:59.8]} 5. Nc3 {[%clk 0:03:02.4]}
5... g6 {[%clk 0:03:00.3]} 6. Be3 {[%clk 0:03:02.3]} 6... Bg7 {[%clk 0:03:00.5]}
7. f3 {[%clk 0:03:02.8]} 7... Nc6 {[%clk 0:03:00.9]} 8. Qd2 {[%clk 0:03:03.1]}
8... O-O {[%clk 0:03:01.1]} 9. Bc4 {[%clk 0:03:02.3]} 9... Bd7 {[%clk
0:03:00.9]} 10. h4 {[%clk 0:03:02]} 10... Qa5 {[%clk 0:02:59.4]} 11. Bb3 {[%clk
0:03:01]} 11... Rfc8 {[%clk 0:02:59.6]} 12. O-O-O {[%clk 0:03:00.2]} 12... Ne5
{[%clk 0:02:59.7]} 13. h5 {[%clk 0:02:59.5]} 13... Nc4 {[%clk 0:02:59.3]} 14.
Bxc4 {[%clk 0:02:59.2]} 14... Rxc4 {[%clk 0:03:00.2]} 15. hxg6 {[%clk
0:02:59.3]} 15... fxg6 {[%clk 0:02:29.5]} 16. Bh6 {[%clk 0:02:58.1]} 16... Bh8
{[%clk 0:02:27.7]} 17. Kb1 {[%clk 0:02:52.4]} 17... Rac8 {[%clk 0:02:06.2]} 18.
Nb3 {[%clk 0:02:34.9]} 18... Qc7 {[%clk 0:01:56.8]} 19. Nd5 {[%clk 0:02:22]}
19... Qd8 {[%clk 0:01:39.3]} 20. e5 {[%clk 0:01:59.8]} 20... Bf5 {[%clk
0:00:47]} 21. exf6 {[%clk 0:00:55.6]} 21... Rxc2 {[%clk 0:00:44.8]} 22. Nxe7+
{[%clk 0:00:19.8]} 22... Qxe7 {[%clk 0:00:44]} 23. Qd5+ {[%clk 0:00:19.3]} 23...
Qf7 {[%clk 0:00:37.7]} 24. Qxf7+ {[%clk 0:00:14.7]} 24... Kxf7 {[%clk
0:00:38.6]} 25. Ka1 {[%clk 0:00:15]} 25... Bxf6 {[%clk 0:00:37.1]} 26. Nd4
{[%clk 0:00:10.4]} 26... Rxg2 {[%clk 0:00:32.6]} 27. Nxf5 {[%clk 0:00:09.5]}
27... Bxb2+ {[%clk 0:00:21.7]} 28. Kb1 {[%clk 0:00:09]} 28... gxf5 {[%clk
0:00:21.6]} 29. Bf4 {[%clk 0:00:07.7]} 29... Be5 {[%clk 0:00:19.2]} 30. Bxe5
{[%clk 0:00:07.1]} 30... dxe5 {[%clk 0:00:20.1]} 31. Rxh7+ {[%clk 0:00:07.1]}
31... Ke6 {[%clk 0:00:07.3]} 32. Rxb7 {[%clk 0:00:05.8]} 32... Rcc2 {[%clk
0:00:04.7]} 33. Rxa7 {[%clk 0:00:04.6]} 33... Rb2+ {[%clk 0:00:04.8]} 34. Ka1
{[%clk 0:00:04.6]} 34... e4 {[%clk 0:00:05]} 35. Ra6+ {[%clk 0:00:04.9]} 35...
Ke5 {[%clk 0:00:05.2]} 36. fxe4 {[%clk 0:00:05.5]} 36... fxe4 {[%clk 0:00:05.7]}
37. Ra5+ {[%clk 0:00:05.7]} 37... Kf4 {[%clk 0:00:05]} 38. Ra4 {[%clk
0:00:06.4]} 38... Kf3 {[%clk 0:00:03.8]} 39. Re1 {[%clk 0:00:06.6]} 39... e3
{[%clk 0:00:03.6]} 40. Ra3 {[%clk 0:00:07.2]} 40... Kf2 {[%clk 0:00:01.3]} 41.
Rexe3 {[%clk 0:00:03.8]} 41... Rg1+ {[%clk 0:00:01.5]} 42. Kxb2 {[%clk
0:00:03.7]} 42... Rg2 {[%clk 0:00:01.6]} 43. Reb3 {[%clk 0:00:03.9]} 43... Ke1+
{[%clk 0:00:01.7]} 44. Kc3 {[%clk 0:00:04.5]} 44... Kd1 {[%clk 0:00:02.1]} 45.
Kb4 {[%clk 0:00:04.9]} 45... Rc2 {[%clk 0:00:03]} 46. Ka4 {[%clk 0:00:05.5]}
46... Rc4+ {[%clk 0:00:03.3]} 47. Rb4 {[%clk 0:00:06.3]} 47... Rc7 {[%clk
0:00:04.2]} 48. Ka5 {[%clk 0:00:06.5]} 48... Ra7+ {[%clk 0:00:04.8]} 49. Kb5
{[%clk 0:00:06.8]} 49... Rxa3 {[%clk 0:00:05.7]} 50. Rb2 {[%clk 0:00:07]} 50...
Kc1 {[%clk 0:00:06.2]} 51. Kb4 {[%clk 0:00:07.6]} 51... Kxb2 {[%clk 0:00:06.5]}
52. Kb5 {[%clk 0:00:07.5]} 52... Rxa2 {[%clk 0:00:07.4]} 53. Kb4 {[%clk
0:00:08.1]} 53... Ra1 {[%clk 0:00:08.3]} 54. Kb5 {[%clk 0:00:08.7]} 54... Rc1
{[%clk 0:00:09.2]} 55. Kb4 {[%clk 0:00:09.4]} 55... Rc3 {[%clk 0:00:10.1]} 56.
Kb5 {[%clk 0:00:10.1]} 56... Kb3 {[%clk 0:00:10.9]} 57. Ka5 {[%clk 0:00:10.2]}
57... Rc4 {[%clk 0:00:11.8]} 58. Kb5 {[%clk 0:00:10.4]} 58... Rc3 {[%clk
0:00:12.1]} 59. Ka5 {[%clk 0:00:11]} 59... Rc5+ {[%clk 0:00:12.3]} 60. Kb6
{[%clk 0:00:11.5]} 60... Kb4 {[%clk 0:00:13.2]} 61. Ka6 {[%clk 0:00:12.1]} 61...
Rb5 {[%clk 0:00:13.3]} 62. Ka7 {[%clk 0:00:11.5]} 62... Kc5 {[%clk 0:00:14.2]}
63. Ka6 {[%clk 0:00:11.7]} 63... Kc6 {[%clk 0:00:15.1]} 64. Ka7 {[%clk
0:00:11.8]} 64... Kc7 {[%clk 0:00:15.5]} 65. Ka6 {[%clk 0:00:12.4]} 65... Rc5
{[%clk 0:00:16.4]} 66. Ka7 {[%clk 0:00:11.7]} 66... Ra5# {[%clk 0:00:17.3]} 0-1

[Event "Early-Titled-Tuesday-Blitz-April-16-2024"]
[Site "Chess.com"]
[Date "2024.04.16"]
[Round "5"]
[White "alexrustemov"]
[Black "TitarovVasiliYouTube"]
[Result "1-0"]
[WhiteElo "2843"]
[BlackElo "2617"]
[TimeControl "180+1"]
[EndTime "8:57:03 PDT"]
[Termination "alexrustemov won on time"]

1. d4 {[%clk 0:02:57.5]} 1... d6 {[%clk 0:01:56.3]} 2. e4 {[%clk 0:02:56.8]}
2... Nf6 {[%clk 0:01:56.5]} 3. f3 {[%clk 0:02:57.1]} 3... e5 {[%clk 0:01:56.8]}
4. Ne2 {[%clk 0:02:57.3]} 4... Be7 {[%clk 0:01:56.8]} 5. c4 {[%clk 0:02:56.8]}
5... O-O {[%clk 0:01:57]} 6. Nbc3 {[%clk 0:02:57.3]} 6... Re8 {[%clk 0:01:56.5]}
7. Be3 {[%clk 0:02:57.4]} 7... c6 {[%clk 0:01:56.1]} 8. d5 {[%clk 0:02:56.4]}
8... cxd5 {[%clk 0:01:52.2]} 9. cxd5 {[%clk 0:02:56.2]} 9... a6 {[%clk
0:01:51.8]} 10. Qd2 {[%clk 0:02:54.4]} 10... b5 {[%clk 0:01:51.5]} 11. Ng3
{[%clk 0:02:49.2]} 11... Nbd7 {[%clk 0:01:49.1]} 12. Be2 {[%clk 0:02:49.4]}
12... Nb6 {[%clk 0:01:49.2]} 13. b3 {[%clk 0:02:45.1]} 13... Bd7 {[%clk
0:01:48.5]} 14. O-O {[%clk 0:02:44.9]} 14... Rc8 {[%clk 0:01:47.5]} 15. Rfc1
{[%clk 0:02:41.7]} 15... Na8 {[%clk 0:01:28.9]} 16. a4 {[%clk 0:02:37.1]} 16...
b4 {[%clk 0:01:20.5]} 17. Nd1 {[%clk 0:02:36.7]} 17... a5 {[%clk 0:01:02.7]} 18.
Nb2 {[%clk 0:02:36]} 18... Rxc1+ {[%clk 0:00:54.2]} 19. Rxc1 {[%clk 0:02:35.4]}
19... Nb6 {[%clk 0:00:54.1]} 20. Bd3 {[%clk 0:02:22.4]} 20... Qb8 {[%clk
0:00:52.8]} 21. Qf2 {[%clk 0:02:13.2]} 21... Rc8 {[%clk 0:00:51.6]} 22. Rxc8+
{[%clk 0:02:07.2]} 22... Nxc8 {[%clk 0:00:52.5]} 23. Nc4 {[%clk 0:02:06.4]}
23... Bd8 {[%clk 0:00:48.4]} 24. Bf1 {[%clk 0:01:55.8]} 24... Qb7 {[%clk
0:00:36.6]} 25. Ne2 {[%clk 0:01:54.4]} 25... Ne8 {[%clk 0:00:35]} 26. Nc1 {[%clk
0:01:53.4]} 26... Nc7 {[%clk 0:00:33.9]} 27. Nd3 {[%clk 0:01:52]} 27... Na8
{[%clk 0:00:33.6]} 28. g3 {[%clk 0:01:43.5]} 28... Qa6 {[%clk 0:00:27.5]} 29.
Ndb2 {[%clk 0:01:39.6]} 29... Qb7 {[%clk 0:00:27.2]} 30. h4 {[%clk 0:01:38.2]}
30... f5 {[%clk 0:00:24.1]} 31. Bh3 {[%clk 0:01:31.2]} 31... fxe4 {[%clk
0:00:24.3]} 32. Bxd7 {[%clk 0:01:29]} 32... Qxd7 {[%clk 0:00:25.2]} 33. fxe4
{[%clk 0:01:28.8]} 33... Qg4 {[%clk 0:00:25.3]} 34. Nd2 {[%clk 0:01:23.3]} 34...
Bxh4 {[%clk 0:00:24.5]} 35. Kg2 {[%clk 0:01:19.6]} 35... Bd8 {[%clk 0:00:23.9]}
36. Nbc4 {[%clk 0:01:16.6]} 36... Nab6 {[%clk 0:00:20.6]} 37. Qf3 {[%clk
0:01:13.7]} 37... Nxc4 {[%clk 0:00:17.3]} 38. Nxc4 {[%clk 0:01:12.4]} 38... Qg6
{[%clk 0:00:16.5]} 39. Qf5 {[%clk 0:01:10.7]} 39... Qxf5 {[%clk 0:00:16.3]} 40.
exf5 {[%clk 0:01:11.2]} 40... Kf7 {[%clk 0:00:16]} 41. g4 {[%clk 0:01:11.1]}
41... h6 {[%clk 0:00:13]} 42. Kf3 {[%clk 0:01:11.1]} 42... Bc7 {[%clk
0:00:13.6]} 43. Ke4 {[%clk 0:01:09.3]} 43... Kf6 {[%clk 0:00:08.9]} 44. Nd2
{[%clk 0:01:04.7]} 44... Ne7 {[%clk 0:00:07.5]} 45. Bf2 {[%clk 0:01:00.8]} 45...
Kf7 {[%clk 0:00:05.7]} 46. Bh4 {[%clk 0:00:59.7]} 46... g5 {[%clk 0:00:05.7]}
47. Bf2 {[%clk 0:00:56.5]} 47... Ng8 {[%clk 0:00:06.3]} 48. Kd3 {[%clk
0:00:30.7]} 48... Nf6 {[%clk 0:00:07.2]} 49. Kc4 {[%clk 0:00:31.3]} 49... Nxg4
{[%clk 0:00:07.3]} 50. Bg1 {[%clk 0:00:31.9]} 50... Nf6 {[%clk 0:00:06.6]} 51.
Kb5 {[%clk 0:00:32]} 51... Nxd5 {[%clk 0:00:06.3]} 52. Kc6 {[%clk 0:00:31.8]}
52... Ne7+ {[%clk 0:00:03]} 53. Kxc7 {[%clk 0:00:31.8]} 53... Nxf5 {[%clk
0:00:03.3]} 54. Nc4 {[%clk 0:00:31.4]} 54... e4 {[%clk 0:00:03.3]} 55. Nxa5
{[%clk 0:00:30]} 55... d5 {[%clk 0:00:03.1]} 56. Nc6 {[%clk 0:00:29.2]} 56... e3
{[%clk 0:00:03.5]} 57. Ne5+ {[%clk 0:00:25.4]} 57... Ke6 {[%clk 0:00:03.7]} 58.
Nd3 {[%clk 0:00:26]} 58... d4 {[%clk 0:00:02]} 59. a5 {[%clk 0:00:26.1]} 59...
Nh4 {[%clk 0:00:02.2]} 60. a6 {[%clk 0:00:24.8]} 60... Nf3 {[%clk 0:00:02.8]}
61. a7 {[%clk 0:00:24.9]} 61... Nxg1 {[%clk 0:00:01.7]} 62. a8=Q {[%clk
0:00:25.1]} 1-0

[Event "Early-Titled-Tuesday-Blitz-April-16-2024"]
[Site "Chess.com"]
[Date "2024.04.16"]
[Round "5"]
[White "Msb2"]
[Black "David_Arutinian"]
[Result "0-1"]
[WhiteElo "3014"]
[BlackElo "2838"]
[TimeControl "180+1"]
[EndTime "8:57:04 PDT"]
[Termination "David_Arutinian won by checkmate"]

1. d4 {[%clk 0:03:00.9]} 1... Nf6 {[%clk 0:02:59.1]} 2. c4 {[%clk 0:03:01.4]}
2... e6 {[%clk 0:02:59.3]} 3. Nc3 {[%clk 0:03:01.9]} 3... Bb4 {[%clk 0:02:59.6]}
4. e3 {[%clk 0:03:02.3]} 4... O-O {[%clk 0:02:59.1]} 5. Bd2 {[%clk 0:03:03]}
5... d5 {[%clk 0:02:59.7]} 6. Nf3 {[%clk 0:03:03.4]} 6... b6 {[%clk 0:02:59.6]}
7. cxd5 {[%clk 0:03:03.7]} 7... exd5 {[%clk 0:02:59.3]} 8. Rc1 {[%clk
0:03:04.3]} 8... Bb7 {[%clk 0:02:59.3]} 9. Bd3 {[%clk 0:03:04.2]} 9... a6 {[%clk
0:02:59]} 10. O-O {[%clk 0:03:04.5]} 10... Bd6 {[%clk 0:02:59.6]} 11. Ne5 {[%clk
0:03:02.6]} 11... c5 {[%clk 0:02:56.7]} 12. f4 {[%clk 0:03:03.2]} 12... cxd4
{[%clk 0:02:53.4]} 13. exd4 {[%clk 0:03:03.3]} 13... Nc6 {[%clk 0:02:48.8]} 14.
Be3 {[%clk 0:02:50.8]} 14... Ne7 {[%clk 0:02:44.9]} 15. Qf3 {[%clk 0:02:48.1]}
15... Bb4 {[%clk 0:02:44.9]} 16. Qh3 {[%clk 0:02:24.5]} 16... Bxc3 {[%clk
0:02:39.4]} 17. Nd7 {[%clk 0:02:12]} 17... Ne4 {[%clk 0:02:03.9]} 18. Nxf8
{[%clk 0:02:08.7]} 18... Bxb2 {[%clk 0:01:58]} 19. Rc2 {[%clk 0:01:57]} 19...
Ba3 {[%clk 0:01:57.7]} 20. Nxh7 {[%clk 0:01:56.5]} 20... Bc8 {[%clk 0:01:50.6]}
21. f5 {[%clk 0:01:54.5]} 21... f6 {[%clk 0:01:49]} 22. Bxe4 {[%clk 0:01:27.6]}
22... dxe4 {[%clk 0:01:48.2]} 23. Nxf6+ {[%clk 0:01:28.2]} 23... gxf6 {[%clk
0:01:48.1]} 24. Bh6 {[%clk 0:01:28.9]} 24... Nxf5 {[%clk 0:01:40.1]} 25. Rxf5
{[%clk 0:01:08.6]} 25... Qxd4+ {[%clk 0:01:16.5]} 26. Rcf2 {[%clk 0:00:36.1]}
26... Bxf5 {[%clk 0:00:30]} 27. Qxf5 {[%clk 0:00:35.7]} 27... Kf7 {[%clk
0:00:30.7]} 28. Kh1 {[%clk 0:00:22.6]} 28... Bc5 {[%clk 0:00:24.5]} 29. Rf1
{[%clk 0:00:22.6]} 29... Rh8 {[%clk 0:00:22.1]} 30. Bg5 {[%clk 0:00:11.8]} 30...
Be7 {[%clk 0:00:17.9]} 31. h3 {[%clk 0:00:09.8]} 31... Rh5 {[%clk 0:00:14.1]}
32. Qg4 {[%clk 0:00:08.3]} 32... Rh7 {[%clk 0:00:12.3]} 33. Bc1 {[%clk
0:00:04.6]} 33... Qd5 {[%clk 0:00:12.6]} 34. Qe2 {[%clk 0:00:03]} 34... Rg7
{[%clk 0:00:10.7]} 35. Rd1 {[%clk 0:00:03.6]} 35... Qf5 {[%clk 0:00:10.2]} 36.
Bb2 {[%clk 0:00:03.9]} 36... Qf4 {[%clk 0:00:09.1]} 37. Rf1 {[%clk 0:00:04.2]}
37... Qg5 {[%clk 0:00:08.6]} 38. Qxe4 {[%clk 0:00:04.6]} 38... Qg3 {[%clk
0:00:07.9]} 39. Qc4+ {[%clk 0:00:04.9]} 39... Kf8 {[%clk 0:00:08.2]} 40. Qc8+
{[%clk 0:00:05.2]} 40... Kf7 {[%clk 0:00:08.2]} 41. Qc4+ {[%clk 0:00:05.8]}
41... Kg6 {[%clk 0:00:08.7]} 42. Qc6 {[%clk 0:00:05.7]} 42... Rf7 {[%clk
0:00:08.2]} 43. Qe4+ {[%clk 0:00:05.5]} 43... Kg7 {[%clk 0:00:08.7]} 44. Rf3
{[%clk 0:00:05.5]} 44... Qg6 {[%clk 0:00:08.5]} 45. Qe3 {[%clk 0:00:04.8]} 45...
Qb1+ {[%clk 0:00:08.1]} 46. Kh2 {[%clk 0:00:05.4]} 46... Qxb2 {[%clk 0:00:07]}
47. Rg3+ {[%clk 0:00:06.1]} 47... Kf8 {[%clk 0:00:05.7]} 48. Qh6+ {[%clk
0:00:06.1]} 48... Ke8 {[%clk 0:00:06.3]} 49. Rg8+ {[%clk 0:00:06.1]} 49... Kd7
{[%clk 0:00:06.4]} 50. Qh5 {[%clk 0:00:01.2]} 50... Bd6+ {[%clk 0:00:06.8]} 51.
Kg1 {[%clk 0:00:01.9]} 51... Qc1+ {[%clk 0:00:06.8]} 52. Kf2 {[%clk 0:00:02.6]}
52... Qd2+ {[%clk 0:00:07.3]} 53. Kf1 {[%clk 0:00:03.3]} 53... Qc1+ {[%clk
0:00:07]} 54. Kf2 {[%clk 0:00:03.9]} 54... Qc2+ {[%clk 0:00:07.6]} 55. Kf1
{[%clk 0:00:04.2]} 55... Qd3+ {[%clk 0:00:07.7]} 56. Kf2 {[%clk 0:00:04.2]}
56... Re7 {[%clk 0:00:08.3]} 57. Qg4+ {[%clk 0:00:04.2]} 57... f5 {[%clk
0:00:08.3]} 58. Qa4+ {[%clk 0:00:04.9]} 58... b5 {[%clk 0:00:08.2]} 59. Qb3
{[%clk 0:00:02.7]} 59... Bc5# {[%clk 0:00:07]} 0-1

[Event "Early-Titled-Tuesday-Blitz-April-16-2024"]
[Site "Chess.com"]
[Date "2024.04.16"]
[Round "5"]
[White "dosto07"]
[Black "KnightDuta"]
[Result "0-1"]
[WhiteElo "2515"]
[BlackElo "2735"]
[TimeControl "180+1"]
[EndTime "8:57:04 PDT"]
[Termination "KnightDuta won by checkmate"]

1. e4 {[%clk 0:03:00.9]} 1... d5 {[%clk 0:02:59.9]} 2. exd5 {[%clk 0:02:59.7]}
2... Nf6 {[%clk 0:03:00.4]} 3. d4 {[%clk 0:02:56]} 3... Nxd5 {[%clk 0:03:00.6]}
4. Nf3 {[%clk 0:02:56]} 4... Bg4 {[%clk 0:03:00.6]} 5. Bc4 {[%clk 0:02:54.7]}
5... e6 {[%clk 0:03:00.7]} 6. O-O {[%clk 0:02:50.9]} 6... Nc6 {[%clk 0:02:58.7]}
7. c3 {[%clk 0:02:50.6]} 7... Be7 {[%clk 0:02:53.6]} 8. Nbd2 {[%clk 0:02:42.5]}
8... O-O {[%clk 0:02:50.2]} 9. Re1 {[%clk 0:02:40]} 9... Nb6 {[%clk 0:02:45.9]}
10. Bb3 {[%clk 0:02:34.3]} 10... Kh8 {[%clk 0:02:07.9]} 11. h3 {[%clk
0:02:31.3]} 11... Bh5 {[%clk 0:02:07.4]} 12. Ne4 {[%clk 0:02:31]} 12... Bxf3
{[%clk 0:01:45.5]} 13. Qxf3 {[%clk 0:02:30.3]} 13... e5 {[%clk 0:01:46.2]} 14.
d5 {[%clk 0:01:54]} 14... Na5 {[%clk 0:01:36.8]} 15. Ng3 {[%clk 0:01:34.5]}
15... Nxb3 {[%clk 0:01:35.2]} 16. axb3 {[%clk 0:01:34.2]} 16... Qxd5 {[%clk
0:00:54.6]} 17. Qxd5 {[%clk 0:01:33.2]} 17... Nxd5 {[%clk 0:00:55.5]} 18. Rxe5
{[%clk 0:01:33.5]} 18... c6 {[%clk 0:00:49.8]} 19. Bd2 {[%clk 0:01:17.2]} 19...
Rfd8 {[%clk 0:00:42.7]} 20. Rae1 {[%clk 0:01:01]} 20... Bd6 {[%clk 0:00:36.3]}
21. R5e2 {[%clk 0:01:00.3]} 21... Kg8 {[%clk 0:00:24.7]} 22. Nf5 {[%clk
0:00:59.7]} 22... Bf8 {[%clk 0:00:20.3]} 23. c4 {[%clk 0:00:57.5]} 23... Nb4
{[%clk 0:00:17.7]} 24. Bc3 {[%clk 0:00:40.9]} 24... Nd3 {[%clk 0:00:15.9]} 25.
Rd1 {[%clk 0:00:37.8]} 25... Nf4 {[%clk 0:00:15.9]} 26. Red2 {[%clk 0:00:35.9]}
26... Ne2+ {[%clk 0:00:15.8]} 27. Kf1 {[%clk 0:00:33.6]} 27... Rxd2 {[%clk
0:00:15]} 28. Rxd2 {[%clk 0:00:32]} 28... Nxc3 {[%clk 0:00:14.5]} 29. bxc3
{[%clk 0:00:32.6]} 29... g6 {[%clk 0:00:13.9]} 30. Nd6 {[%clk 0:00:20.5]} 30...
b6 {[%clk 0:00:05.7]} 31. Ne4 {[%clk 0:00:18.1]} 31... Bg7 {[%clk 0:00:06]} 32.
Rd6 {[%clk 0:00:14.9]} 32... f5 {[%clk 0:00:05.2]} 33. Ng5 {[%clk 0:00:14.3]}
33... c5 {[%clk 0:00:05.4]} 34. Ne6 {[%clk 0:00:13.2]} 34... Bxc3 {[%clk
0:00:05.3]} 35. Rd7 {[%clk 0:00:13.1]} 35... a5 {[%clk 0:00:03.7]} 36. Ng5
{[%clk 0:00:12.4]} 36... h6 {[%clk 0:00:03]} 37. Nf7 {[%clk 0:00:11.7]} 37...
Bg7 {[%clk 0:00:03.6]} 38. f4 {[%clk 0:00:11.2]} 38... a4 {[%clk 0:00:04.1]} 39.
bxa4 {[%clk 0:00:10.6]} 39... Rxa4 {[%clk 0:00:05]} 40. Rb7 {[%clk 0:00:10.4]}
40... Rxc4 {[%clk 0:00:04.9]} 41. Nd6 {[%clk 0:00:10.6]} 41... Rxf4+ {[%clk
0:00:05.1]} 42. Ke2 {[%clk 0:00:10.7]} 42... Rb4 {[%clk 0:00:06]} 43. Ne8 {[%clk
0:00:09.9]} 43... Be5 {[%clk 0:00:05.9]} 44. Rb8 {[%clk 0:00:08.7]} 44... Bxb8
{[%clk 0:00:06]} 45. Nf6+ {[%clk 0:00:07.9]} 45... Kf7 {[%clk 0:00:06.8]} 46.
Nd7 {[%clk 0:00:08.8]} 46... Rd4 {[%clk 0:00:06.9]} 47. Nxb8 {[%clk 0:00:08.4]}
47... b5 {[%clk 0:00:07.7]} 48. Nc6 {[%clk 0:00:08.2]} 48... Re4+ {[%clk
0:00:07.7]} 49. Kd2 {[%clk 0:00:07.5]} 49... Ke6 {[%clk 0:00:08.6]} 50. Na5
{[%clk 0:00:05.9]} 50... c4 {[%clk 0:00:08.5]} 51. Nc6 {[%clk 0:00:05.3]} 51...
Kd5 {[%clk 0:00:08.9]} 52. Nb4+ {[%clk 0:00:05.1]} 52... Kc5 {[%clk 0:00:09.8]}
53. Na6+ {[%clk 0:00:05.1]} 53... Kd4 {[%clk 0:00:09.8]} 54. Nb4 {[%clk
0:00:03.6]} 54... c3+ {[%clk 0:00:10.5]} 55. Kc2 {[%clk 0:00:03.8]} 55... Kc4
{[%clk 0:00:11.4]} 56. Nc6 {[%clk 0:00:03.6]} 56... Re2+ {[%clk 0:00:11.8]} 57.
Kc1 {[%clk 0:00:04]} 57... b4 {[%clk 0:00:11.8]} 58. Na5+ {[%clk 0:00:03.8]}
58... Kd3 {[%clk 0:00:12.4]} 59. Nc6 {[%clk 0:00:02.5]} 59... Re1# {[%clk
0:00:12.6]} 0-1